fUST/lending_fUST_20240116
["ID","MTS","AMOUNT","RATE_DAILY","PERIOD"]
[311780751,1705387839681,-500.0,0.0002831,2]
[311780753,1705387839690,-500.0,0.00028311,2]
[311780755,1705387839699,-500.0,0.00028312,2]
[311780757,1705387839708,-2636.46,0.00028355,2]
[311780759,1705387839718,-500.0,0.00028355,2]
[311780761,1705387839727,-500.0,0.00028356,2]
[311780763,1705387839737,-500.0,0.00028421,2]
[311780765,1705387839746,-500.0,0.00028421,2]
[311780767,1705387839755,-500.0,0.00028421,2]
[311780769,1705387839764,-500.0,0.00028421,2]
[311780771,1705387839773,-974.06,0.00028421,2]
[311780772,1705387839782,-500.0,0.00028422,2]
[311780774,1705387839792,-500.0,0.00028422,2]
[311780776,1705387839801,-500.0,0.00028422,2]
[311780779,1705387839811,-500.0,0.00028422,2]
[311780781,1705387839820,-677.43954104,0.00028492,2]
[311780782,1705387839829,-177.82900735,0.00028492,2]
[311780784,1705387839839,-500.0,0.00028493,2]
[311780786,1705387839848,-1344.91,0.00028584,2]
[311780788,1705387839858,-500.0,0.00028584,2]
[311780790,1705387839867,-500.0,0.00028584,2]
[311780792,1705387839876,-500.0,0.00028585,2]
[311780794,1705387839887,-210.9,0.00028586,2]
[311780796,1705387839896,-2636.46,0.00028629,2]
[311780798,1705387839906,-500.0,0.00028629,2]
[311780800,1705387839915,-500.0,0.0002863,2]
[311780802,1705387839925,-500.0,0.00028695,2]
[311780804,1705387839935,-500.0,0.00028695,2]
[311780806,1705387839944,-500.0,0.00028695,2]
[311780808,1705387839954,-500.0,0.00028695,2]
[311780810,1705387839964,-974.06,0.00028695,2]
[311780812,1705387839974,-500.0,0.00028696,2]
[311780814,1705387839984,-500.0,0.00028696,2]
[311780826,1705387840080,-500.0,0.00028696,2]
[311780828,1705387840089,-500.0,0.00028696,2]
[311780830,1705387840098,-500.0,0.00028767,2]
[311780832,1705387840107,-1344.91,0.00028858,2]
[311780833,1705387840116,-500.0,0.00028858,2]
[311780835,1705387840126,-500.0,0.00028858,2]
[311780837,1705387840135,-500.0,0.00028859,2]
[311780839,1705387840145,-2636.46,0.00028903,2]
[311780842,1705387840154,-500.0,0.00028903,2]
[311780844,1705387840163,-342.48819433,0.00028904,2]
[311780846,1705387840173,-620.001547,0.00028961,2]
[311780848,1705387840182,-500.0,0.00028969,2]
[311780850,1705387840193,-500.0,0.00028969,2]
[311780852,1705387840202,-500.0,0.00028969,2]
[311780853,1705387840211,-500.0,0.00028969,2]
[311780855,1705387840221,-974.06,0.00028969,2]
[311780857,1705387840229,-500.0,0.0002897,2]
[311780859,1705387840239,-500.0,0.0002897,2]
[311780861,1705387840248,-597.32,0.0002897,2]
[311780863,1705387840259,-500.0,0.0002897,2]
[311780865,1705387840270,-2454.74382412,0.00029,2]
[311780867,1705387840279,-155.77486132,0.00029,2]
[311780869,1705387840290,-155.0,0.00029,2]
[311780871,1705387840300,-2000.0,0.00029,2]
[311780873,1705387840309,-2000.0,0.0002901,2]
[311780875,1705387840319,-2000.0,0.0002902,2]
[311780877,1705387840329,-2000.0,0.0002903,2]
[311780879,1705387840339,-2000.0,0.0002904,2]
[311780882,1705387840349,-2000.0,0.0002905,2]
[311780884,1705387840358,-2000.0,0.0002906,2]
[311780886,1705387840368,-2000.0,0.0002907,2]
[311780888,1705387840377,-3261.392649,0.0002908,2]
[311780890,1705387840390,-1344.91,0.00029132,2]
[311780893,1705387840402,-500.0,0.00029132,2]
[311780895,1705387840411,-500.0,0.00029132,2]
[311780897,1705387840421,-500.0,0.00029133,2]
[311780898,1705387840430,-2636.46,0.00029177,2]
[311780900,1705387840439,-500.0,0.00029177,2]
[311780902,1705387840449,-500.0,0.00029243,2]
[311780905,1705387840458,-500.0,0.00029243,2]
[311780906,1705387840468,-500.0,0.00029243,2]
[311780908,1705387840478,-500.0,0.00029243,2]
[311780910,1705387840487,-974.06,0.00029243,2]
[311780912,1705387840496,-500.0,0.00029244,2]
[311780914,1705387840506,-500.0,0.00029244,2]
[311780916,1705387840515,-500.0,0.00029244,2]
[311780918,1705387840525,-3480.45535994,0.00029398,2]
[311780921,1705387840535,-1344.91,0.00029406,2]
[311780922,1705387840545,-500.0,0.00029406,2]
[311780924,1705387840554,-500.0,0.00029406,2]
[311780926,1705387840563,-500.0,0.00029407,2]
[311780928,1705387840572,-2636.46,0.00029451,2]
[311780930,1705387840581,-500.0,0.00029451,2]
[311780932,1705387840590,-165.95053937,0.00029465,2]
[311780934,1705387840599,-161.7286158,0.00029493,2]
[311780935,1705387840608,-249.13022421,0.00029517,2]
[311780936,1705387840617,-500.0,0.00029517,2]
[311780937,1705387840626,-500.0,0.00029517,2]
[311780938,1705387840636,-500.0,0.00029517,2]
[311780939,1705387840646,-974.06,0.00029517,2]
[311780940,1705387840655,-500.0,0.00029518,2]
[311780941,1705387840664,-500.0,0.00029518,2]
[311780942,1705387840672,-500.0,0.00029518,2]
[311780943,1705387840681,-154.0128522,0.00029594,2]
[311780944,1705387840691,-1344.91,0.0002968,2]
[311780945,1705387840699,-500.0,0.0002968,2]
[311780946,1705387840708,-500.0,0.0002968,2]
[311780947,1705387840717,-500.0,0.00029681,2]
[311780948,1705387840726,-2636.46,0.00029725,2]
[311780949,1705387840735,-500.0,0.00029725,2]
[311780950,1705387840744,-161.7286158,0.00029763,2]
[311780951,1705387840753,-154.0128522,0.00029777,2]
[311780952,1705387840762,-500.0,0.00029791,2]
[311780953,1705387840771,-500.0,0.00029791,2]
[311780954,1705387840780,-500.0,0.00029791,2]
[311780955,1705387840789,-974.06,0.00029791,2]
[311780956,1705387840798,-500.0,0.00029792,2]
[311780957,1705387840807,-500.0,0.00029792,2]
[311780958,1705387840815,-1344.91,0.00029954,2]
[311780959,1705387840824,-500.0,0.00029954,2]
[311780960,1705387840833,-500.0,0.00029954,2]
[311780962,1705387840842,-500.0,0.00029955,2]
[311780963,1705387840851,-2636.46,0.00029999,2]
[311780965,1705387840861,-500.0,0.00029999,2]
[311780967,1705387840871,-631.35216736,0.00029999,2]
[311780969,1705387840881,-500.0,0.00029999,2]
[311780971,1705387840893,-521.28547598,0.00029999,2]
[311780973,1705387840902,-500.0,0.00029999,2]
[311780975,1705387840911,-500.0,0.00029999,2]
[311780977,1705387840920,-500.0,0.00029999,2]
[311780979,1705387840929,-500.0,0.00029999,2]
[311780981,1705387840939,-500.0,0.00029999,2]
[311780983,1705387840948,-500.0,0.00029999,2]
[311780985,1705387840957,-500.0,0.00029999,2]
[311780987,1705387840967,-255.4797091,0.00029999,2]
[311780989,1705387840976,-500.0,0.00029999,2]
[311780991,1705387840986,-500.0,0.00029999,2]
[311780993,1705387840995,-500.0,0.00029999,2]
[311780995,1705387841004,-500.0,0.00029999,2]
[311780997,1705387841013,-415.90806164,0.00029999,2]
[311780999,1705387841022,-500.0,0.00029999,2]
[311781001,1705387841032,-405.32964548,0.00029999,2]
[311781003,1705387841041,-586.50933071,0.00029999,2]
[311781006,1705387841051,-500.0,0.00029999,2]
[311781007,1705387841060,-500.0,0.00029999,2]
[311781009,1705387841070,-500.0,0.00029999,2]
[311781012,1705387841083,-207.02395434,0.00029999,2]
[311781013,1705387841092,-500.0,0.00029999,2]
[311781015,1705387841101,-500.0,0.00029999,2]
[311781018,1705387841111,-500.0,0.00029999,2]
[311781019,1705387841123,-500.0,0.00029999,2]
[311781021,1705387841132,-500.0,0.00029999,2]
[311781024,1705387841143,-500.0,0.00029999,2]
[311781025,1705387841152,-500.0,0.00029999,2]
[311781028,1705387841161,-500.0,0.00029999,2]
[311781029,1705387841170,-500.0,0.00029999,2]
[311781031,1705387841179,-500.0,0.00029999,2]
[311781034,1705387841188,-500.0,0.00029999,2]
[311781036,1705387841198,-154.0,0.0003,4]
[311781037,1705387841207,-157.58234581,0.0003,4]
[311781040,1705387841216,-1008.0,0.0003,2]
[311781042,1705387841225,-465.24992729,0.0003,4]
[311781044,1705387841235,-34095.98656636,0.0003,3]
[311781045,1705387841244,-200.30831708,0.0003,4]
[311781047,1705387841252,-1150.65166067,0.0003,2]
[311781049,1705387841262,-807.41,0.0003,2]
[311781051,1705387841271,-155.0,0.0003,2]
[311781053,1705387841280,-681.93949513,0.0003,3]
[311781055,1705387841289,-155.77495357,0.0003,4]
[311781057,1705387841299,-640.52310595,0.0003,4]
[311781059,1705387841308,-297.88447958,0.0003,4]
[311781062,1705387841318,-438.6008308,0.0003,5]
[311781064,1705387841327,-687.578808,0.0003,4]
[311781065,1705387841336,-20774.94157507,0.0003,4]
[311781067,1705387841346,-3758.34471,0.0003,2]
[311781069,1705387841355,-270.0,0.0003,2]
[311781071,1705387841363,-5000.0,0.00030005,2]
[311781073,1705387841372,-167.74035204,0.00030036,7]
[311781075,1705387841381,-500.0,0.00030065,2]
[311781077,1705387841392,-500.0,0.00030065,2]
[311781079,1705387841401,-606.68477192,0.00030065,2]
[311781081,1705387841410,-974.06,0.00030065,2]
[311781083,1705387841419,-500.0,0.00030066,2]
[311781085,1705387841428,-357.98191874,0.00030066,2]
[311781087,1705387841437,-391.0,0.00030112,15]
[311781089,1705387841448,-170.82124155,0.00030119,7]
[311781091,1705387841459,-403.89866808,0.00030136,3]
[311781093,1705387841468,-194.85553355,0.00030136,4]
[311781095,1705387841477,-164.91788441,0.00030136,2]
[311781097,1705387841486,-150.0,0.00030136,2]
[311781099,1705387841495,-150.0,0.00030136,2]
[311781101,1705387841504,-150.0,0.00030136,2]
[311781103,1705387841513,-150.0,0.00030136,2]
[311781105,1705387841523,-150.0,0.00030136,2]
[311781107,1705387841533,-150.0,0.00030136,2]
[311781109,1705387841543,-150.93928023,0.00030136,2]
[311781111,1705387841552,-306.2703506,0.00030137,2]
[311781113,1705387841561,-153.0,0.00030137,2]
[311781115,1705387841570,-153.0,0.00030137,2]
[311781117,1705387841579,-306.2535945,0.00030137,2]
[311781119,1705387841588,-153.0,0.00030137,2]
[311781121,1705387841597,-198.9082381,0.00030137,2]
[311781123,1705387841606,-153.0,0.00030137,2]
[311781125,1705387841615,-153.0,0.00030137,2]
[311781127,1705387841624,-153.0,0.00030137,2]
[311781129,1705387841634,-198.9082381,0.00030137,2]
[311781131,1705387841644,-198.9082381,0.00030137,2]
[311781133,1705387841654,-198.9082381,0.00030137,2]
[311781135,1705387841663,-198.9082381,0.00030137,2]
[311781137,1705387841672,-198.9082381,0.00030137,2]
[311781139,1705387841681,-198.9082381,0.00030137,2]
[311781141,1705387841690,-198.9082381,0.00030137,2]
[311781143,1705387841699,-198.9082381,0.00030137,2]
[311781145,1705387841709,-198.9082381,0.00030137,2]
[311781147,1705387841718,-198.9082381,0.00030137,2]
[311781149,1705387841727,-198.9082381,0.00030137,2]
[311781151,1705387841736,-198.9082381,0.00030137,2]
[311781153,1705387841746,-198.9082381,0.00030137,2]
[311781155,1705387841756,-198.9082381,0.00030137,2]
[311781157,1705387841765,-198.9082381,0.00030137,2]
[311781159,1705387841774,-198.9082381,0.00030137,2]
[311781161,1705387841783,-198.9082381,0.00030137,2]
[311781163,1705387841793,-198.9082381,0.00030137,2]
[311781165,1705387841802,-198.9082381,0.00030137,2]
[311781167,1705387841811,-198.9082381,0.00030137,2]
[311781169,1705387841821,-198.9082381,0.00030137,2]
[311781171,1705387841830,-198.9082381,0.00030137,2]
[311781173,1705387841839,-198.9082381,0.00030137,2]
[311781175,1705387841848,-397.8164762,0.00030137,2]
[311781177,1705387841857,-397.8164762,0.00030137,2]
[311781179,1705387841866,-198.9082381,0.00030137,2]
[311781181,1705387841875,-198.9082381,0.00030137,2]
[311781183,1705387841884,-155.0,0.00030137,2]
[311781185,1705387841895,-1344.91,0.00030228,2]
[311781187,1705387841904,-500.0,0.00030228,2]
[311781189,1705387841913,-500.0,0.00030228,2]
[311781191,1705387841922,-500.0,0.00030229,2]
[311781192,1705387841932,-2636.46,0.00030273,2]
[311781195,1705387841943,-500.0,0.00030273,2]
[311781196,1705387841956,-500.0,0.00030339,2]
[311781198,1705387841965,-500.0,0.00030339,2]
[311781200,1705387841975,-974.06,0.00030339,2]
[311781202,1705387841984,-500.0,0.0003034,2]
[311781204,1705387841993,-155.0,0.0003037,2]
[311781206,1705387842002,-504.499014,0.000304,15]
[311781208,1705387842012,-620.00007735,0.00030409,2]
[311781210,1705387842021,-1344.91,0.00030502,2]
[311781212,1705387842031,-500.0,0.00030502,2]
[311781214,1705387842040,-500.0,0.00030502,2]
[311781216,1705387842049,-500.0,0.00030503,2]
[311781218,1705387842058,-165.95053937,0.00030505,7]
[311781220,1705387842068,-2636.46,0.00030547,2]
[311781222,1705387842077,-500.0,0.00030547,2]
[311781224,1705387842089,-409.0,0.000306,2]
[311781226,1705387842098,-500.0,0.00030613,2]
[311781229,1705387842108,-500.0,0.00030613,2]
[311781230,1705387842117,-974.06,0.00030613,2]
[311781232,1705387842126,-500.0,0.00030614,2]
[311781235,1705387842135,-241.97,0.00030677,30]
[311781236,1705387842145,-155.20695697,0.00030682,4]
[311781238,1705387842154,-1301.04989534,0.00030687,2]
[311781240,1705387842163,-375.30059407,0.00030687,2]
[311781242,1705387842173,-350.15785547,0.00030687,2]
[311781244,1705387842182,-156.65738023,0.00030701,2]
[311781246,1705387842191,-3460.7927216,0.00030716,2]
[311781248,1705387842200,-448.86534083,0.00030716,2]
[311781250,1705387842210,-209.33760989,0.00030731,2]
[311781252,1705387842219,-325.26247384,0.00030747,2]
[311781254,1705387842228,-404.67507132,0.00030747,2]
[311781256,1705387842237,-173.43217343,0.00030747,2]
[311781258,1705387842246,-1303.01214409,0.00030747,2]
[311781260,1705387842255,-1344.91,0.00030776,2]
[311781262,1705387842264,-500.0,0.00030776,2]
[311781264,1705387842273,-500.0,0.00030776,2]
[311781266,1705387842282,-500.0,0.00030777,2]
[311781268,1705387842291,-50000.0,0.00030784,7]
[311781270,1705387842301,-50000.0,0.00030786,7]
[311781272,1705387842310,-6000.0,0.000308,2]
[311781274,1705387842318,-6000.0,0.000308,2]
[311781276,1705387842328,-2636.46,0.00030821,2]
[311781278,1705387842337,-500.0,0.00030821,2]
[311781280,1705387842346,-500.0,0.00030887,2]
[311781282,1705387842355,-413.66,0.00030887,2]
[311781284,1705387842364,-974.06,0.00030887,2]
[311781286,1705387842373,-500.0,0.00030888,2]
[311781296,1705387842459,-500.0,0.00030958,2]
[311781298,1705387842468,-1133.45,0.00030987,2]
[311781300,1705387842477,-150.0,0.00030993,2]
[311781302,1705387842486,-150.0,0.00030999,2]
[311781304,1705387842494,-1338.63,0.00030999,2]
[311781306,1705387842504,-1338.63,0.00030999,2]
[311781308,1705387842512,-1338.63,0.00030999,2]
[311781310,1705387842522,-1338.63,0.00030999,2]
[311781312,1705387842531,-1338.63,0.00030999,2]
[311781314,1705387842540,-1338.63,0.00030999,2]
[311781316,1705387842549,-1338.63,0.00030999,2]
[311781318,1705387842558,-1338.63,0.00030999,2]
[311781320,1705387842567,-1338.63,0.00030999,2]
[311781322,1705387842576,-609.27826206,0.00030999,4]
[311781324,1705387842585,-500.0,0.00030999,4]
[311781326,1705387842594,-487.21595598,0.00030999,4]
[311781328,1705387842603,-500.0,0.00030999,4]
[311781330,1705387842612,-500.0,0.00030999,4]
[311781332,1705387842621,-500.0,0.00030999,4]
[311781334,1705387842630,-500.0,0.00030999,4]
[311781336,1705387842640,-526.90794115,0.00030999,4]
[311781338,1705387842649,-500.0,0.00030999,4]
[311781340,1705387842658,-423.12980932,0.00030999,4]
[311781342,1705387842667,-338.87669994,0.00030999,4]
[311781344,1705387842676,-500.0,0.00030999,4]
[311781346,1705387842685,-500.0,0.00030999,4]
[311781348,1705387842695,-500.0,0.00030999,4]
[311781350,1705387842704,-500.0,0.00030999,4]
[311781352,1705387842714,-500.0,0.00030999,4]
[311781354,1705387842723,-51172.84509874,0.00031,2]
[311781362,1705387842778,-10984.87950703,0.00031,2]
[311781365,1705387842787,-2500.0,0.00031,7]
[311781367,1705387842797,-45444.99994418,0.00031,4]
[311781381,1705387842917,-282.12940785,0.00027775,2]
[311781383,1705387842926,-150.0,0.00027993,2]
[311781385,1705387842935,-282.12940782,0.00028556,2]
[311781387,1705387842944,-150.0,0.00030993,2]
[311781389,1705387842953,-142.9249486,0.00031,4]
[311784622,1705389032515,-155.0,0.000235,2]
[311784624,1705389032524,-205.07888746,0.00026101,2]
[311784834,1705389038599,-4716.82638211,0.000261,2]
[311784835,1705389038615,-3276.85157058,0.00026101,2]
[311784836,1705389038627,-304.3118027,0.00026611,2]
[311784837,1705389038639,-155.0,0.00026997,4]
[311784838,1705389038651,-289.85545354,0.00027,2]
[311784839,1705389038662,-274.42712104,0.00027,2]
[311784840,1705389038672,-461.1686624,0.00027395,2]
[311784841,1705389038683,-500.0,0.00027397,2]
[311784842,1705389038695,-500.0,0.00027488,2]
[311784843,1705389038706,-500.0,0.00027488,2]
[311784844,1705389038717,-500.0,0.00027488,2]
[311784845,1705389038729,-552.9,0.00027488,2]
[311784846,1705389038740,-174.6166086,0.00027701,2]
[311784847,1705389038753,-500.0,0.00027761,2]
[311784848,1705389038765,-500.0,0.00027761,2]
[311784849,1705389038775,-500.0,0.00027761,2]
[311784850,1705389038786,-500.0,0.00027761,2]
[311784851,1705389038797,-500.0,0.00027762,2]
[311784852,1705389038807,-500.0,0.00027762,2]
[311784853,1705389038817,-1000.0,0.00027873,2]
[311784854,1705389038827,-500.0,0.00027873,2]
[311784855,1705389038837,-500.0,0.00027873,2]
[311784856,1705389038849,-551.76,0.00027911,3]
[311784857,1705389038861,-954.29,0.00027911,3]
[311784858,1705389038872,-795.24,0.00027911,3]
[311784859,1705389038883,-177.82900735,0.00027919,2]
[311784860,1705389038894,-677.43954104,0.00027919,2]
[311784862,1705389038905,-500.0,0.0002792,2]
[311784864,1705389038916,-500.0,0.0002792,2]
[311784866,1705389038926,-537.17,0.0002792,2]
[311784869,1705389038938,-2545.29,0.0002792,2]
[311784871,1705389038949,-1569.6,0.0002792,2]
[311784873,1705389038961,-500.0,0.0002792,2]
[311784875,1705389038971,-500.0,0.0002792,2]
[311784877,1705389038981,-5000.0,0.00027921,5]
[311784879,1705389038991,-6632.86869579,0.00027921,5]
[311784882,1705389039002,-5000.0,0.00027921,5]
[311784884,1705389039015,-36443.61546526,0.00027921,5]
[311784886,1705389039026,-5000.0,0.00027921,5]
[311784888,1705389039038,-5404.26929273,0.00027921,5]
[311784892,1705389039063,-17612.59117009,0.00027921,5]
[311784895,1705389039078,-500.0,0.00028035,2]
[311784897,1705389039090,-500.0,0.00028035,2]
[311784899,1705389039104,-432.31575709,0.00028035,2]
[311784901,1705389039114,-500.0,0.00028036,2]
[311784904,1705389039127,-500.0,0.00028036,2]
[311784906,1705389039139,-500.0,0.00028057,2]
[311784908,1705389039151,-500.0,0.00028147,2]
[311784909,1705389039163,-500.0,0.00028147,2]
[311784911,1705389039176,-500.0,0.00028194,2]
[311784913,1705389039188,-537.17,0.00028194,2]
[311784916,1705389039200,-2545.29,0.00028194,2]
[311784918,1705389039213,-1569.6,0.00028194,2]
[311784920,1705389039227,-500.0,0.00028194,2]
[311784923,1705389039239,-500.0,0.00028194,2]
[311784924,1705389039252,-500.0,0.00028309,2]
[311784925,1705389039264,-500.0,0.0002831,2]
[311784926,1705389039276,-500.0,0.0002831,2]
[311784927,1705389039286,-500.0,0.00028331,2]
[311784928,1705389039296,-218.14,0.00028421,2]
[311784929,1705389039306,-500.0,0.00028468,2]
[311784930,1705389039316,-537.17,0.00028468,2]
[311784931,1705389039326,-2545.29,0.00028468,2]
[311784932,1705389039337,-1569.6,0.00028468,2]
[311784933,1705389039349,-500.0,0.00028468,2]
[311784934,1705389039361,-500.0,0.00028468,2]
[311784935,1705389039372,-500.0,0.00028584,2]
[311784936,1705389039384,-500.0,0.00028584,2]
[311784937,1705389039395,-500.0,0.00028605,2]
[311784938,1705389039407,-463.97044914,0.00028742,2]
[311784939,1705389039416,-537.17,0.00028742,2]
[311784940,1705389039427,-2545.29,0.00028742,2]
[311784941,1705389039438,-1569.6,0.00028742,2]
[311784942,1705389039448,-500.0,0.00028742,2]
[311784943,1705389039458,-500.0,0.00028742,2]
[311784944,1705389039468,-500.0,0.00028858,2]
[311784945,1705389039477,-500.0,0.00028858,2]
[311784946,1705389039487,-342.48819433,0.00028879,2]
[311784947,1705389039499,-329.27255298,0.000289,2]
[311784948,1705389039510,-2454.74382412,0.00029,2]
[311784949,1705389039521,-1865.222074,0.00029,2]
[311784950,1705389039532,-155.0,0.00029,2]
[311784951,1705389039544,-155.77486132,0.00029,2]
[311784952,1705389039554,-537.17,0.00029016,2]
[311784954,1705389039567,-2545.29,0.00029016,2]
[311784956,1705389039580,-1569.6,0.00029016,2]
[311784958,1705389039590,-500.0,0.00029016,2]
[311784959,1705389039601,-500.0,0.00029132,2]
[311784962,1705389039617,-500.0,0.00029132,2]
[311784964,1705389039628,-154.0128522,0.00029152,2]
[311784966,1705389039639,-155.51533463,0.00029166,2]
[311784968,1705389039650,-500.0,0.00029175,2]
[311784970,1705389039661,-500.0,0.00029175,2]
[311784973,1705389039671,-500.0,0.00029175,2]
[311784975,1705389039682,-500.0,0.00029175,2]
[311784977,1705389039693,-500.0,0.00029175,2]
[311784979,1705389039705,-500.0,0.00029175,2]
[311784981,1705389039715,-500.0,0.00029175,2]
[311784983,1705389039726,-500.0,0.00029175,2]
[311784986,1705389039736,-500.0,0.00029175,2]
[311784988,1705389039746,-990.26,0.00029175,2]
[311784990,1705389039756,-705.02,0.00029175,2]
[311784992,1705389039767,-537.17,0.0002929,2]
[311784994,1705389039777,-2545.29,0.0002929,2]
[311784996,1705389039787,-1569.6,0.0002929,2]
[311785011,1705389039915,-500.0,0.0002929,2]
[311785013,1705389039927,-500.0,0.00029406,2]
[311785015,1705389039936,-343.19826167,0.00029406,2]
[311785017,1705389039945,-165.95053937,0.00029411,2]
[311785019,1705389039954,-500.0,0.00029449,2]
[311785021,1705389039964,-500.0,0.00029449,2]
[311785023,1705389039973,-500.0,0.00029449,2]
[311785025,1705389039983,-500.0,0.00029449,2]
[311785027,1705389039993,-500.0,0.00029449,2]
[311785030,1705389040003,-500.0,0.00029449,2]
[311785032,1705389040012,-500.0,0.00029449,2]
[311785034,1705389040021,-500.0,0.00029449,2]
[311785036,1705389040030,-500.0,0.00029449,2]
[311785038,1705389040039,-500.0,0.00029449,2]
[311785040,1705389040049,-500.0,0.00029449,2]
[311785042,1705389040058,-500.0,0.00029449,2]
[311785044,1705389040067,-500.0,0.00029449,2]
[311785046,1705389040076,-990.26,0.00029449,2]
[311785048,1705389040085,-705.02,0.00029449,2]
[311785050,1705389040095,-9110.22573903,0.0002945,4]
[311785051,1705389040104,-537.17,0.00029564,2]
[311785054,1705389040114,-2545.29,0.00029564,2]
[311785056,1705389040123,-1569.6,0.00029564,2]
[311785058,1705389040132,-500.0,0.00029564,2]
[311785060,1705389040141,-154.0128522,0.00029647,2]
[311785061,1705389040152,-226.64,0.0002968,2]
[311785064,1705389040161,-772.10854206,0.00029697,2]
[311785065,1705389040170,-200.0,0.00029699,15]
[311785068,1705389040180,-500.0,0.00029723,2]
[311785070,1705389040189,-500.0,0.00029723,2]
[311785072,1705389040198,-500.0,0.00029723,2]
[311785073,1705389040207,-500.0,0.00029723,2]
[311785076,1705389040216,-500.0,0.00029723,2]
[311785078,1705389040226,-500.0,0.00029723,2]
[311785079,1705389040235,-500.0,0.00029723,2]
[311785081,1705389040245,-500.0,0.00029723,2]
[311785084,1705389040255,-500.0,0.00029723,2]
[311785086,1705389040264,-500.0,0.00029723,2]
[311785087,1705389040273,-990.26,0.00029723,2]
[311785090,1705389040283,-705.02,0.00029723,2]
[311785091,1705389040292,-537.17,0.00029838,2]
[311785093,1705389040301,-2545.29,0.00029838,2]
[311785095,1705389040310,-1569.6,0.00029838,2]
[311785098,1705389040320,-500.0,0.00029838,2]
[311785100,1705389040330,-1048.23434748,0.00029967,2]
[311785102,1705389040340,-2705.10797595,0.00029997,5]
[311785104,1705389040350,-500.0,0.00029997,2]
[311785105,1705389040359,-500.0,0.00029997,2]
[311785107,1705389040368,-500.0,0.00029997,2]
[311785110,1705389040377,-500.0,0.00029997,2]
[311785112,1705389040387,-500.0,0.00029997,2]
[311785114,1705389040397,-500.0,0.00029997,2]
[311785116,1705389040406,-500.0,0.00029997,2]
[311785118,1705389040415,-500.0,0.00029997,2]
[311785120,1705389040425,-500.0,0.00029997,2]
[311785122,1705389040434,-500.0,0.00029997,2]
[311785124,1705389040444,-990.26,0.00029997,2]
[311785126,1705389040453,-705.02,0.00029997,2]
[311785128,1705389040462,-3375.81162826,0.00029998,2]
[311785129,1705389040471,-1464.57,0.00029999,2]
[311785132,1705389040481,-1464.57,0.00029999,2]
[311785134,1705389040491,-1464.57,0.00029999,2]
[311785136,1705389040500,-1464.57,0.00029999,2]
[311785137,1705389040510,-1464.57,0.00029999,2]
[311785139,1705389040519,-1464.57,0.00029999,2]
[311785141,1705389040528,-1464.57,0.00029999,2]
[311785143,1705389040538,-681.93949513,0.0003,3]
[311785146,1705389040547,-340.48270764,0.0003,4]
[311785147,1705389040556,-641.54247479,0.0003,4]
[311785150,1705389040565,-688.6762337,0.0003,4]
[311785152,1705389040575,-155.0,0.0003,2]
[311785154,1705389040584,-12267.76203625,0.0003,2]
[311785156,1705389040593,-208979.89365064,0.0003,2]
[311785161,1705389040637,-5296.10724531,0.0003,2]
[311785163,1705389040648,-681.32860443,0.0003,2]
[311785165,1705389040660,-2007.50480411,0.0003,2]
[311785255,1705389041490,-169.2776447,0.00028368,2]